bitfinex-derivatives/quotes_SOLF0:USTF0_20260108
["timestamp","ask_amount","ask_price","bid_price","bid_amount"]
[1767904492765,6.5735,137.05,137.01,1.50363873]
[1767904495168,1.4421058,137.07,137.01,3.873e-05]
[1767904495466,0.04658409,137.04,137.01,3.873e-05]
[1767904496770,6.62058409,137.04,137.01,3.873e-05]
[1767904496966,0.04658409,137.04,137.01,3.873e-05]
[1767904497168,94.67368533,137.08,137.01,3.873e-05]
[1767904497364,6.5725,137.08,137.02,1.44992589]
[1767904497562,105.47599113,137.11,137.02,1.44992589]
[1767904497563,3.26329113,137.11,137.02,1.44992589]
[1767904498071,6.5715,137.1,137.03,1.44992589]
[1767904498371,8.0136058,137.1,137.03,1.44992589]
[1767904498669,8.0136058,137.1,137.05,0.04619528]
[1767904499860,1.4421058,137.09,137.05,0.04619528]
[1767904501178,6.5706,137.12,137.05,1.49612117]
[1767904501474,8.0127058,137.12,137.05,1.49612117]
[1767904502168,1.4421058,137.12,137.06,8.02292589]
[1767904502366,94.67078533,137.14,137.06,6.573]
[1767904502569,1.4391386,137.14,137.08,1.34261568]
[1767904502863,3.26032393,137.16,137.09,1.34261568]
[1767904503064,86.28,137.18,137.09,1.34261568]
[1767904503372,0.04937238,137.14,137.1,1.39510591]
[1767904504273,6.567,137.19,137.11,1.34261568]
[1767904505263,1.4391386,137.2,137.12,1.34261568]
[1767904505668,1.4391386,137.2,137.14,0.05071897]
[1767904505972,8.0055386,137.2,137.14,0.05071897]
[1767904506170,13.98776892,137.21,137.14,1.39333465]
[1767904506365,13.98776892,137.21,137.16,1.82118533]
[1767904506571,7.8870683,137.21,137.17,1.34261568]
[1767904506772,7.8870683,137.21,137.17,3.16380101]
[1767904507574,7.8870683,137.21,137.18,0.04763143]
[1767904508271,8.0031386,137.25,137.18,1.50763143]
[1767904508272,1.4391386,137.25,137.18,1.50763143]
[1767904508470,1.4391386,137.25,137.18,0.04763143]
[1767904509364,1.4391386,137.27,137.19,1.82118533]
[1767904510276,1.4391386,137.27,137.22,0.05126309]
[1767904511068,1.4391386,137.26,137.16,86.22]
[1767904511262,1.4391386,137.23,137.15,8.38958533]
[1767904511476,1.4391386,137.23,137.13,1.82118533]
[1767904511672,1.4391386,137.21,137.13,1.82118533]
[1767904512268,1.4391386,137.21,137.14,6.5689]
[1767904514177,1.82118533,137.23,137.14,6.5689]
[1767904514380,3.26032393,137.23,137.15,8.38958533]
[1767904514877,1.4391386,137.25,137.16,6.568]
[1767904515085,1.4391386,137.25,137.17,1.82118533]
[1767904515475,1.4391386,137.25,137.16,1.82118533]
[1767904516077,1.4391386,137.25,137.16,86.2]
[1767904516276,1.4391386,137.25,137.16,88.02118533]
[1767904516682,1.4391386,137.25,137.17,6.5675]
[1767904518178,3.26032393,137.24,137.17,6.5675]
[1767904518475,3.26032393,137.24,137.15,94.58948533]
[1767904518679,3.26032393,137.24,137.15,88.02118533]
[1767904519677,3.26032393,137.24,137.16,6.568]
[1767904520584,1.4391386,137.23,137.16,6.568]
[1767904521383,1.4391386,137.22,137.14,94.56998533]
[1767904521779,1.4391386,137.22,137.14,88.00118533]
[1767904522080,1.4391386,137.22,137.14,1.82118533]
[1767904522280,9.82582393,137.22,137.14,86.18]
[1767904523589,9.82582393,137.22,137.14,92.7491]
[1767904523987,1.4391386,137.22,137.14,88.00118533]
[1767904524387,1.82118533,137.23,137.16,6.568]
[1767904525281,3.26032393,137.23,137.16,6.568]
[1767904525476,3.26032393,137.23,137.14,88.00118533]
[1767904525477,1.4391386,137.22,137.14,6.5688]
[1767904525688,1.4391386,137.2,137.14,92.7488]
[1767904525890,1.82118533,137.21,137.14,86.18]
[1767904526084,1.82118533,137.21,137.12,102.1973]
[1767904526284,1.82118533,137.21,137.13,86.18]
[1767904526481,3.26032393,137.21,137.13,86.18]
[1767904526681,1.4391386,137.21,137.13,86.18]
[1767904527588,1.4391386,137.21,137.15,6.5686]
[1767904528583,1.82118533,137.22,137.14,86.18]
[1767904528991,1.4391386,137.23,137.14,86.18]
[1767904529187,3.26032393,137.23,137.14,86.18]
[1767904529685,3.26032393,137.23,137.17,6.5676]
[1767904530492,1.4391386,137.23,137.17,6.5676]
[1767904532895,8.0040386,137.23,137.15,92.7483]
[1767904533093,1.19849108,137.22,137.15,92.7483]
[1767904534799,1.19849108,137.21,137.15,92.7483]
[1767904535297,1.19849108,137.21,137.15,6.5683]
[1767904535993,1.19849108,137.21,137.16,6.5682]
[1767904540893,1.19849108,137.2,137.14,6.5688]
[1767904541296,1.19849108,137.2,137.13,86.18]
[1767904542401,1.19849108,137.24,137.14,102.1871]
[1767904542601,1.19849108,137.24,137.14,108.96444489]
[1767904542800,1.19849108,137.24,137.15,86.18]
[1767904543605,7.76289108,137.24,137.17,6.5672]
[1767904544409,1.19849108,137.23,137.17,6.5672]
[1767904546300,1.19849108,137.23,137.18,6.5671]
[1767904546798,7.76339108,137.23,137.16,13.34504489]
[1767904547898,1.19849108,137.21,137.16,6.5677]
[1767904549301,1.19849108,137.21,137.16,13.34504489]
[1767904554303,1.19849108,137.21,137.17,6.77734489]
[1767904556511,1.19849108,137.21,137.15,9.10603696]
[1767904556708,1.19849108,137.21,137.12,0.62400917]
[1767904556709,1.19849108,137.2,137.12,0.62400917]
[1767904556909,1.25399765,137.2,137.12,0.62400917]
[1767904557710,7.76529108,137.19,137.12,7.19380917]
[1767904558318,1.19849108,137.17,137.1,7.84657224]
[1767904558513,1.24633415,137.17,137.1,7.84657224]
[1767904559109,1.19849108,137.16,137.1,7.84657224]
[1767904561408,1.19849108,137.16,137.1,6.5708]
[1767904561608,1.19849108,137.15,137.08,1.27577224]
[1767904562709,0.05591347,137.13,137.09,7.51487334]
[1767904565216,0.05591347,137.13,137.1,0.94337334]
[1767904571320,6.5678,137.17,137.1,7.51437334]
[1767904571624,0.93491546,137.22,137.12,0.94337334]
[1767904571829,102.1017,137.26,137.17,0.94337334]
[1767904571830,0.93491546,137.24,137.17,0.94337334]
[1767904572131,0.93491546,137.26,137.17,0.94337334]
[1767904572628,0.93491546,137.26,137.2,0.0530588]
[1767904573328,0.93491546,137.26,137.2,0.99643214]
[1767904574725,0.93491546,137.26,137.2,7.56253214]
[1767904575115,7.49781546,137.28,137.2,7.56253214]
[1767904576630,0.93491546,137.27,137.2,7.56253214]
[1767904577023,7.49791546,137.27,137.2,7.56253214]
[1767904578633,0.93491546,137.27,137.21,7.50907334]
[1767904581135,87.11491546,137.29,137.21,7.50907334]
[1767904582030,0.93491546,137.29,137.24,0.04855666]
[1767904585132,0.93491546,137.32,137.24,0.99193]
[1767904585435,87.09491546,137.34,137.27,0.94337334]
[1767904585622,93.65461546,137.34,137.27,0.94337334]
[1767904585928,93.65461546,137.34,137.29,0.04881729]
[1767904586124,0.93491546,137.32,137.24,7.50737334]
[1767904586321,0.98421947,137.32,137.24,7.50737334]
[1767904586521,0.93491546,137.31,137.22,0.94337334]
[1767904586728,0.93491546,137.29,137.22,0.94337334]
[1767904587536,0.93491546,137.29,137.2,0.94337334]
[1767904588033,0.04705099,137.27,137.2,0.94337334]
[1767904588526,0.04705099,137.27,137.21,6.5658]
[1767904588927,0.04705099,137.27,137.21,7.50917334]
[1767904591837,0.04705099,137.27,137.22,0.94337334]
[1767904596438,1.53680121,137.27,137.21,6.5658]
[1767904596636,1.53680121,137.27,137.2,1.44522818]
[1767904596834,1.81506305,137.26,137.2,1.44522818]
[1767904597340,0.04705099,137.27,137.22,1.44522818]
[1767904597735,86.16,137.31,137.22,1.44522818]
[1767904597933,86.16,137.31,137.24,1.44522818]
[1767904598138,86.16,137.31,137.25,6.5638]
[1767904598542,86.16,137.31,137.24,1.44522818]
[1767904598739,92.721,137.31,137.24,1.44522818]
[1767904599247,92.721,137.31,137.26,0.04764556]
[1767904601149,6.561,137.31,137.26,0.04764556]
[1767904601846,8.05075022,137.31,137.26,0.04764556]
[1767904602744,8.05135022,137.3,137.26,0.04764556]
[1767904602949,1.48975022,137.29,137.22,8.01012818]
[1767904604241,0.04883776,137.27,137.22,8.01012818]
[1767904604944,0.04883776,137.27,137.23,1.44522818]
[1767904612048,6.61173776,137.27,137.21,1.44522818]
[1767904612248,1.53858798,137.27,137.21,1.44522818]
[1767904612455,1.48975022,137.27,137.21,1.44522818]
[1767904612851,1.48975022,137.25,137.18,1.44522818]
[1767904613246,3.30481327,137.25,137.18,1.44522818]
[1767904614457,0.04692555,137.23,137.18,1.44522818]
[1767904614651,0.04692555,137.23,137.18,8.01232818]
[1767904614851,0.04692555,137.23,137.19,1.44522818]
[1767904622052,6.5638,137.26,137.19,1.44522818]
[1767904622358,1.81506305,137.29,137.21,1.44522818]
[1767904622555,6.5629,137.28,137.22,6.5652]
[1767904622755,6.5629,137.28,137.23,1.67894317]
[1767904622952,1.48975022,137.3,137.23,1.67894317]
[1767904623655,1.48975022,137.3,137.25,0.04834548]
[1767904624057,6.5625,137.28,137.23,1.67894317]
[1767904628665,8.37657198,137.28,137.21,8.44350778]
[1767904629465,0.0489697,137.26,137.21,8.44350778]
[1767904629974,0.0489697,137.26,137.22,8.44300778]
[1767904630256,1.81407198,137.28,137.23,1.87770778]
[1767904639474,1.81506305,137.25,137.22,0.05045837]
[1767904639675,1.81407198,137.29,137.22,1.92816615]
[1767904640266,1.81407198,137.29,137.22,1.87770778]
[1767904640464,1.81407198,137.29,137.24,0.05436089]
[1767904641668,8.37607198,137.29,137.24,0.05436089]
[1767904642567,1.81407198,137.28,137.24,0.05436089]
[1767904643778,8.37706305,137.29,137.24,0.05436089]
[1767904644971,1.81407198,137.3,137.24,1.93206867]
[1767904645163,86.14,137.31,137.24,1.93206867]
[1767904645370,1.81407198,137.32,137.24,1.93206867]
[1767904646065,87.95407198,137.34,137.26,1.87770778]
[1767904646270,3.62913503,137.36,137.27,1.87770778]
[1767904646672,1.81407198,137.35,137.27,1.87770778]
[1767904647668,1.81407198,137.35,137.3,0.0541542]
[1767904647669,10.18823503,137.35,137.3,0.0541542]
[1767904651683,8.37317198,137.35,137.3,0.0541542]
[1767904651996,89.76913503,137.37,137.3,1.93186198]
[1767904652585,87.95407198,137.37,137.3,1.93186198]
[1767904653176,2.08213123,137.36,137.3,0.0541542]
[1767904653485,2.08213123,137.33,137.27,6.5626]
[1767904653989,2.08213123,137.32,137.25,2.01707784]
[1767904654787,94.76223123,137.34,137.25,2.01707784]
[1767904655679,94.76223123,137.34,137.27,8.57987784]
[1767904657482,88.20213123,137.34,137.28,6.5624]
[1767904657882,2.08213123,137.34,137.28,6.5624]
[1767904658482,2.08213123,137.34,137.28,8.57947784]
[1767904658680,2.08213123,137.36,137.3,2.01707784]
[1767904659693,2.08213123,137.36,137.3,8.57837784]
[1767904662696,2.08213123,137.36,137.28,8.57917784]
[1767904663388,6.5592,137.35,137.28,2.01707784]
[1767904663592,2.08213123,137.34,137.28,2.01707784]
[1767904666295,8.64183123,137.34,137.28,2.01707784]
[1767904669398,6.5601,137.33,137.28,2.01707784]
[1767904670402,8.64223123,137.33,137.26,8.58047784]
[1767904670795,2.08213123,137.33,137.28,2.01707784]
[1767904671290,8.64233123,137.33,137.28,2.01707784]
[1767904674606,6.5606,137.32,137.28,2.01707784]
[1767904675406,6.5606,137.32,137.26,8.58007784]
[1767904675708,6.5606,137.32,137.27,2.01707784]
[1767904676204,2.08213123,137.33,137.27,2.01707784]
[1767904676396,2.08213123,137.33,137.27,8.57977784]
[1767904676803,8.64233123,137.33,137.27,8.57977784]
[1767904677107,2.08213123,137.32,137.25,8.58047784]
[1767904677308,2.08213123,137.32,137.25,2.01707784]
[1767904678002,2.08213123,137.32,137.26,6.5632]
[1767904678198,2.08213123,137.32,137.26,2.01707784]
[1767904679697,2.08213123,137.32,137.27,6.5629]
[1767904680608,2.08213123,137.32,137.26,2.01707784]
[1767904682016,2.08213123,137.32,137.26,8.58027784]
[1767904684213,2.08213123,137.32,137.27,6.5629]
[1767904686207,2.06871696,137.34,137.28,8.83538679]
[1767904688614,94.74731696,137.36,137.29,6.562]
[1767904688813,94.74731696,137.36,137.3,2.27298679]
[1767904688814,88.18871696,137.36,137.3,2.27298679]
[1767904689313,2.06871696,137.36,137.32,0.04787461]
[1767904691212,86.12,137.38,137.32,2.3208614]
[1767904691415,2.06871696,137.4,137.32,2.3208614]
[1767904692014,2.06871696,137.4,137.32,2.27298679]
[1767904692716,8.62571696,137.4,137.32,8.83338679]
[1767904693115,2.06871696,137.4,137.33,2.27298679]
[1767904693317,2.06871696,137.4,137.33,8.83288679]
[1767904693717,2.06871696,137.4,137.31,2.27298679]
[1767904693918,8.62601696,137.39,137.32,2.27298679]
[1767904694113,2.06871696,137.39,137.32,2.27298679]
[1767904694311,86.1,137.4,137.32,2.27298679]
[1767904694618,2.06871696,137.41,137.32,2.27298679]
[1767904695222,8.62531696,137.41,137.34,6.5593]
[1767904695622,8.62531696,137.41,137.34,8.83228679]
[1767904697715,2.06871696,137.41,137.35,6.559]
[1767904698411,2.06871696,137.41,137.34,2.27298679]
[1767904700016,2.06871696,137.4,137.34,2.27298679]
[1767904700520,2.06871696,137.4,137.34,8.83248679]
[1767904703625,101.92124729,137.42,137.35,8.83198679]
[1767904704015,101.92124729,137.42,137.36,2.27298679]
[1767904704218,13.77253033,137.42,137.37,8.83108679]
[1767904706924,2.06871696,137.41,137.33,2.27298679]
[1767904708529,8.62501696,137.41,137.34,6.5596]
[1767904708831,2.06871696,137.4,137.31,2.27298679]
[1767904710526,6.5573,137.39,137.32,6.5605]
[1767904710726,8.62601696,137.39,137.32,8.83348679]
[1767904711729,2.06871696,137.38,137.32,2.27298679]
[1767904712543,6.5582,137.37,137.32,2.27298679]
[1767904716345,15.98241109,137.42,137.35,2.35891207]
[1767904716545,13.77253033,137.42,137.35,2.35891207]
[1767904717148,2.20988076,137.41,137.33,2.35891207]
[1767904717951,2.20988076,137.39,137.33,2.35891207]
[1767904718144,4.02224849,137.38,137.3,2.35891207]
[1767904718751,2.20988076,137.37,137.3,2.35891207]
[1767904719449,1.81236773,137.36,137.3,2.35891207]
[1767904719750,8.37126773,137.36,137.3,2.35891207]
[1767904721037,8.37126773,137.36,137.27,1.81236773]
[1767904721038,8.76908076,137.35,137.28,2.35891207]
[1767904721648,8.76908076,137.35,137.28,8.92121207]
[1767904722955,8.76908076,137.35,137.28,2.35891207]
[1767904723152,4.02224849,137.34,137.28,2.35891207]
[1767904723455,10.58194849,137.34,137.28,2.35891207]
[1767904725758,1.81236773,137.32,137.25,8.92241207]
[1767904726455,1.81236773,137.3,137.22,13.10615159]
[1767904726654,2.20988076,137.27,137.22,1.71839]
[1767904726848,1.81236773,137.26,137.22,1.71839]
[1767904728958,2.20988076,137.27,137.22,1.71839]
[1767904729659,102.0273,137.36,137.24,2.35891207]
[1767904729660,2.20988076,137.33,137.24,2.35891207]
[1767904729858,2.20988076,137.33,137.25,4.1712798]
[1767904730061,94.86918076,137.35,137.27,4.1712798]
[1767904730250,8.76918076,137.35,137.27,4.1712798]
[1767904730455,2.20988076,137.38,137.3,2.35891207]
[1767904730764,2.20988076,137.37,137.3,2.35891207]
[1767904731057,4.02224849,137.37,137.3,2.35891207]
[1767904731654,2.20988076,137.37,137.3,2.35891207]
[1767904732159,2.20988076,137.37,137.3,8.92031207]
[1767904733463,86.1,137.38,137.31,8.91961207]
[1767904733757,8.36986773,137.39,137.31,8.91961207]
[1767904734262,86.1,137.41,137.34,2.35891207]
[1767904734464,2.20988076,137.41,137.34,2.35891207]
[1767904734663,2.20988076,137.41,137.32,2.35891207]
[1767904734957,8.76628076,137.41,137.32,2.35891207]
[1767904735159,2.20988076,137.39,137.32,2.35891207]
[1767904735462,2.20988076,137.37,137.29,2.35891207]
[1767904735656,2.20988076,137.37,137.29,8.92051207]
[1767904735855,2.20988076,137.37,137.29,2.35891207]
[1767904736254,2.20988076,137.36,137.29,2.35891207]
[1767904736858,10.58094849,137.36,137.29,2.35891207]
[1767904737163,1.81236773,137.37,137.29,8.92071207]
[1767904738660,4.02224849,137.37,137.29,8.92071207]
[1767904739061,2.20988076,137.36,137.29,2.35891207]
[1767904739660,2.20988076,137.34,137.26,2.35891207]
[1767904740069,2.20988076,137.33,137.26,2.35891207]
[1767904740365,2.20988076,137.32,137.23,10.7357798]
[1767904740668,2.20988076,137.3,137.23,2.35891207]
[1767904740872,86.1,137.32,137.25,2.35891207]
[1767904741058,4.02224849,137.35,137.26,2.35891207]
[1767904741361,4.02224849,137.33,137.25,8.92261207]
[1767904741562,2.20988076,137.33,137.25,8.92261207]
[1767904741965,2.20988076,137.33,137.26,2.35891207]
[1767904742266,8.77018076,137.33,137.26,2.35891207]
[1767904742868,1.81236773,137.34,137.26,2.35891207]
[1767904743161,2.35753784,137.36,137.29,2.20293636]
[1767904743367,8.91483784,137.39,137.31,2.20293636]
[1767904747268,8.91483784,137.39,137.34,0.04977565]
[1767904749469,8.91483784,137.39,137.31,2.20293636]
[1767904749470,6.5578,137.38,137.31,2.20293636]
[1767904749659,6.60739345,137.38,137.31,2.20293636]
[1767904750061,2.34080444,137.36,137.28,8.83694028]
[1767904750572,2.34080444,137.36,137.28,2.27484028]
[1767904751067,0.04791795,137.33,137.28,2.27484028]
[1767904751268,0.04791795,137.33,137.29,6.5619]
[1767904752267,0.04791795,137.33,137.28,2.27484028]
[1767904754371,0.04791795,137.33,137.29,0.04653183]
[1767904761166,0.04791795,137.33,137.29,6.60823183]
[1767904762870,2.38872239,137.33,137.29,0.04653183]
[1767904763076,2.38872239,137.33,137.25,2.27484028]
[1767904763777,8.94892239,137.33,137.26,6.5634]
[1767904763983,8.94892239,137.33,137.26,8.83824028]
[1767904766578,8.94892239,137.33,137.27,6.5629]
[1767904766776,2.38872239,137.33,137.27,6.5629]
[1767904768582,2.38872239,137.33,137.28,6.5624]
[1767904772280,0.04791795,137.33,137.29,6.5619]
[1767904772788,87.91352388,137.34,137.29,6.5619]
[1767904773175,0.05275583,137.32,137.29,6.5619]
[1767904778175,0.05275583,137.32,137.28,6.5624]
[1767904778370,0.05275583,137.32,137.27,2.26082643]
[1767904778683,2.33531079,137.32,137.25,2.26082643]
[1767904779075,2.28255496,137.32,137.25,2.26082643]
[1767904779277,8.84315496,137.32,137.26,6.5634]
[1767904779481,0.05374112,137.3,137.25,2.26082643]
[1767904780582,0.05374112,137.3,137.26,6.5634]
[1767904781984,0.05374112,137.3,137.25,8.82472643]
[1767904782982,0.05374112,137.3,137.26,8.82412643]
[1767904783186,6.56,137.34,137.26,2.26082643]
[1767904783381,8.84255496,137.34,137.26,2.26082643]
[1767904783887,2.28255496,137.34,137.28,8.82282643]
[1767904784477,0.04944934,137.32,137.28,8.82282643]
[1767904785183,0.04944934,137.32,137.28,2.26082643]
[1767904785388,0.04944934,137.32,137.29,0.0548274]
[1767904788577,6.559,137.36,137.3,2.26082643]
[1767904788887,92.679,137.36,137.3,2.26082643]
[1767904789085,94.96155496,137.36,137.3,2.26082643]
[1767904791791,8.84175496,137.35,137.29,0.0548274]
[1767904792287,94.94175496,137.35,137.29,0.0548274]
[1767904792692,8.84175496,137.35,137.29,0.0548274]
[1767904792893,94.94175496,137.35,137.29,0.0548274]
[1767904793094,8.84235496,137.34,137.29,0.0548274]
[1767904796602,2.28255496,137.33,137.25,8.82452643]
[1767904796808,88.38255496,137.32,137.25,17.85337595]
[1767904797604,94.94355496,137.32,137.25,17.85337595]
[1767904797901,0.04730269,137.3,137.25,17.85337595]
[1767904798104,0.04730269,137.3,137.26,6.5633]
[1767904798399,6.56,137.34,137.27,2.31130516]
[1767904799697,6.56,137.34,137.28,6.5624]
[1767904801206,6.56,137.34,137.28,8.82322643]
[1767904801595,8.84165496,137.35,137.28,8.82322643]
[1767904802202,8.84165496,137.35,137.3,0.05062689]
[1767904803500,2.20625136,137.33,137.26,8.74767703]
[1767904804204,2.20625136,137.32,137.24,8.74867703]
[1767904804602,6.5611,137.31,137.25,6.5638]
[1767904804805,6.5611,137.31,137.25,8.74857703]
[1767904805006,0.05468059,137.28,137.25,8.74857703]
[1767904808013,2.20625136,137.32,137.26,8.86869535]
[1767904808307,92.6605,137.33,137.27,2.30539535]
[1767904808501,6.5605,137.33,137.27,2.30539535]
[1767904809299,6.5605,137.33,137.29,0.04715258]
[1767904809914,6.5606,137.32,137.27,2.30539535]
[1767904811012,94.91810753,137.34,137.27,2.30539535]
[1767904811411,0.04895409,137.31,137.24,2.30539535]
[1767904812610,0.04895409,137.31,137.27,2.30539535]
[1767904812813,2.23800753,137.38,137.27,2.30539535]
[1767904813010,2.23800753,137.38,137.28,2.30539535]
[1767904813331,2.23800753,137.41,137.32,2.30539535]
[1767904813506,13.77253033,137.42,137.32,2.30539535]
[1767904813708,13.77253033,137.42,137.35,6.5588]
[1767904813921,2.23800753,137.41,137.33,2.30539535]
[1767904814123,2.23800753,137.41,137.3,88.42539535]
[1767904814419,16.60586609,137.42,137.32,2.30539535]
[1767904814420,2.23800753,137.4,137.32,2.30539535]
[1767904814631,0.05583888,137.38,137.32,2.30539535]
[1767904815021,16.01053786,137.42,137.34,2.30539535]
[1767904816010,16.01053786,137.42,137.35,2.30539535]
[1767904816314,13.77253033,137.42,137.35,2.30539535]
[1767904816521,13.77253033,137.42,137.37,0.05418311]
[1767904816522,16.01053786,137.42,137.37,0.05418311]
[1767904818310,2.23800753,137.41,137.33,6.5599]
[1767904818516,2.29214201,137.41,137.33,6.5599]
[1767904818726,2.29214201,137.41,137.33,2.30539535]
[1767904819614,2.29214201,137.41,137.34,6.5594]
[1767904819821,2.29214201,137.41,137.33,2.30539535]
[1767904821125,8.84854201,137.41,137.33,8.86529535]
[1767904822631,8.84854201,137.41,137.34,2.30539535]
[1767904822632,2.29214201,137.41,137.34,2.30539535]
[1767904822926,0.05413448,137.41,137.34,2.30539535]
[1767904823120,16.01053786,137.42,137.34,2.30539535]
[1767904823521,0.04627408,137.39,137.35,6.5589]
[1767904824726,0.04627408,137.39,137.33,6.5597]
[1767904825124,0.04627408,137.39,137.33,8.86509535]
[1767904826031,0.04627408,137.39,137.34,2.30539535]
[1767904826821,102.09053786,137.42,137.36,8.86399535]
[1767904827136,99.85253033,137.42,137.36,8.86399535]
[1767904827329,16.01053786,137.42,137.36,8.86399535]
[1767904828337,16.01053786,137.42,137.36,2.30539535]
[1767904828526,2.23800753,137.41,137.35,0.0498739]
[1767904828830,2.23800753,137.4,137.3,2.30539535]
[1767904829135,2.23800753,137.38,137.3,2.30539535]
[1767904830035,0.05077036,137.35,137.3,2.30539535]
[1767904830725,0.05077036,137.35,137.31,6.561]
[1767904831223,0.05077036,137.35,137.3,2.30539535]
[1767904832534,0.05077036,137.35,137.3,8.86679535]
[1767904836432,0.05077036,137.35,137.31,6.5609]
[1767904837234,0.05077036,137.35,137.32,8.74179143]
[1767904837429,3.95954702,137.4,137.33,2.18129143]
[1767904838338,6.5572,137.39,137.33,2.18129143]
[1767904838633,8.70396146,137.39,137.35,0.0494757]
[1767904839039,0.05431394,137.37,137.33,2.18129143]
[1767904839537,1.81278556,137.41,137.33,2.18129143]
[1767904839738,1.81278556,137.41,137.3,103.87608556]
[1767904839739,22.47509179,137.42,137.36,2.18129143]
[1767904839936,13.77253033,137.42,137.36,2.18129143]
[1767904840939,13.77253033,137.42,137.38,0.04842401]
[1767904845041,8.70306146,137.41,137.34,2.18129143]
[1767904845230,8.7547759,137.41,137.34,2.18129143]
[1767904845433,10.56756146,137.41,137.34,2.18129143]
[1767904845835,8.70346146,137.4,137.34,2.18129143]
[1767904846540,2.14676146,137.39,137.33,6.5598]
[1767904846737,2.14676146,137.38,137.31,8.74189143]
[1767904847443,0.05556557,137.36,137.31,2.18129143]
[1767904849042,0.05556557,137.36,137.29,8.74279143]
[1767904849240,8.76112703,137.36,137.29,8.74279143]
[1767904850444,2.20232703,137.36,137.3,6.5613]
[1767904850645,0.05556557,137.36,137.3,2.18129143]
[1767904851646,0.05556557,137.36,137.31,6.5609]
[1767904853048,0.05556557,137.36,137.32,6.5605]
[1767904855148,0.05556557,137.36,137.32,8.74179143]
[1767904856956,0.05556557,137.36,137.32,2.18129143]
[1767904859257,0.05556557,137.36,137.32,8.74179143]
[1767904860460,0.05556557,137.36,137.3,2.18129143]
[1767904861343,0.05556557,137.36,137.3,8.74229143]
[1767904862251,0.05556557,137.36,137.31,6.5609]
[1767904865158,0.05556557,137.36,137.29,8.67100539]
[1767904865159,4.15679702,137.36,137.29,8.67100539]
[1767904865358,1.81278556,137.34,137.29,8.67100539]
[1767904865958,0.0484966,137.33,137.29,8.67100539]
[1767904866863,0.0484966,137.33,137.27,8.7616814]
[1767904868066,6.6086966,137.33,137.27,8.7616814]
[1767904869869,8.72552864,137.33,137.27,8.7616814]
[1767904871166,2.16532864,137.33,137.28,6.5624]
[1767904871364,2.16532864,137.33,137.27,2.1991814]
[1767904871766,3.9296176,137.32,137.25,2.1991814]
[1767904872060,10.4921176,137.28,137.22,1.71839]
[1767904872658,0.05342889,137.26,137.22,1.71839]
[1767904873171,0.05342889,137.26,137.22,3.9175714]
[1767904873667,0.05342889,137.26,137.22,1.71839]
[1767904875161,1.81278556,137.25,137.22,1.71839]
[1767904875359,3.9296176,137.25,137.18,2.1991814]
[1767904875667,1.81278556,137.23,137.16,2.1991814]
[1767904875967,2.11683204,137.24,137.17,2.1991814]
[1767904876350,0.04946798,137.21,137.17,2.1991814]
[1767904876564,0.04946798,137.21,137.18,6.5671]
[1767904877670,0.04946798,137.21,137.17,2.1991814]
[1767904886269,8.68063204,137.26,137.18,2.1991814]
[1767904886474,86.14,137.25,137.18,2.25362188]
[1767904887562,86.14,137.25,137.18,8.82052188]
[1767904888676,92.7039,137.25,137.18,8.82052188]
[1767904889770,86.14,137.25,137.19,8.7658814]
[1767904890774,2.11683204,137.24,137.18,0.05444048]
[1767904891371,2.11683204,137.24,137.18,2.25362188]
[1767904892280,2.11683204,137.24,137.18,8.82082188]
[1767904892667,2.11683204,137.24,137.18,0.05444048]
[1767904893369,87.97278556,137.26,137.19,8.79514213]
[1767904893577,90.07667755,137.26,137.19,8.79514213]
[1767904893875,90.07667755,137.26,137.19,2.22844213]
[1767904894078,90.07667755,137.26,137.2,6.5662]
[1767904894079,96.64017755,137.26,137.2,6.5662]
[1767904894377,2.10389199,137.3,137.22,2.22844213]
[1767904894575,88.26389199,137.3,137.22,2.22844213]
[1767904894775,2.10389199,137.29,137.22,2.22844213]
[1767904895173,2.10389199,137.29,137.25,0.04806694]
[1767904895676,8.66589199,137.29,137.25,0.04806694]
[1767904897274,6.5614,137.31,137.25,0.04806694]
[1767904897476,92.7214,137.31,137.25,2.27650907]
[1767904898276,94.82529199,137.31,137.25,2.27650907]
[1767904898477,94.82529199,137.31,137.25,0.04806694]
[1767904898478,8.66549199,137.3,137.25,0.04806694]
[1767904903288,2.10389199,137.3,137.25,0.04806694]
[1767904905587,8.66549199,137.3,137.25,0.04806694]
[1767904905787,94.80549199,137.3,137.25,0.04806694]
[1767904907889,8.66589199,137.29,137.25,0.04806694]
[1767904908480,2.10389199,137.29,137.25,0.04806694]
[1767904908694,2.10389199,137.32,137.25,2.27650907]
[1767904908894,88.24389199,137.32,137.25,2.27650907]
[1767904909096,88.24389199,137.32,137.25,2.22844213]
[1767904909593,88.24389199,137.32,137.27,0.04649146]
[1767904911197,94.80449199,137.32,137.27,0.04649146]
[1767904911598,88.24389199,137.32,137.27,0.04649146]
[1767904912196,2.10389199,137.31,137.27,0.04649146]
[1767904912392,2.10389199,137.31,137.22,2.22844213]